fUST/lending_fUST_20240326
["ID","MTS","AMOUNT","RATE_DAILY","PERIOD"]
[320575079,1711449040411,-1557.09944839,0.0001996,2]
[320575080,1711449040421,-1557.09944839,0.00019962,2]
[320575081,1711449040430,-1557.09944839,0.00019965,2]
[320575082,1711449040439,-1557.09944839,0.00019965,2]
[320575083,1711449040449,-1557.09944839,0.00019966,2]
[320575084,1711449040459,-1557.09944838,0.00019966,2]
[320575085,1711449040469,-250.59805486,0.00019967,2]
[320575086,1711449040478,-1557.09944838,0.00019968,2]
[320575087,1711449040488,-250.59805486,0.00019969,2]
[320575088,1711449040498,-250.59805486,0.00019969,2]
[320575089,1711449040507,-1557.09944839,0.00019969,2]
[320575090,1711449040516,-1557.09944839,0.00019972,2]
[320575091,1711449040526,-436.73213432,0.00019972,2]
[320575092,1711449040536,-436.73213432,0.00019972,2]
[320575093,1711449040545,-436.73213432,0.00019973,2]
[320575094,1711449040554,-1557.09944839,0.00019973,2]
[320575095,1711449040563,-1557.09944839,0.00019974,2]
[320575096,1711449040574,-250.59805486,0.00019975,2]
[320575097,1711449040584,-250.59805486,0.00019975,2]
[320575098,1711449040593,-1557.09944839,0.00019975,2]
[320575099,1711449040604,-436.73213432,0.00019976,2]
[320575100,1711449040613,-250.59805486,0.00019978,2]
[320575101,1711449040622,-1557.09944839,0.00019979,2]
[320575102,1711449040632,-436.73213432,0.00019979,2]
[320575103,1711449040642,-436.73213432,0.00019979,2]
[320575104,1711449040651,-1557.09944838,0.00019979,2]
[320575105,1711449040661,-196.10392389,0.00019984,2]
[320575106,1711449040670,-500.0,0.00019984,2]
[320575107,1711449040679,-310.57253061,0.00019984,2]
[320575108,1711449040689,-500.0,0.00019984,2]
[320575109,1711449040699,-500.0,0.00019984,2]
[320575110,1711449040709,-537.25855472,0.00019985,2]
[320575111,1711449040718,-743.86,0.00019985,2]
[320575112,1711449040728,-500.0,0.00019985,2]
[320575113,1711449040737,-500.0,0.00019985,2]
[320575114,1711449040747,-500.0,0.00019985,2]
[320575115,1711449040756,-500.0,0.00019985,2]
[320575116,1711449040765,-500.0,0.00019985,2]
[320575117,1711449040774,-850.77,0.00019985,2]
[320575118,1711449040783,-934.8,0.00019985,2]
[320575119,1711449040793,-500.0,0.00019985,2]
[320575120,1711449040802,-939.49,0.00019985,2]
[320575121,1711449040811,-722.79,0.00019985,2]
[320575122,1711449040820,-956.21,0.00019985,2]
[320575123,1711449040829,-160.96905707,0.00019985,2]
[320575124,1711449040839,-355.22850799,0.00019985,2]
[320575125,1711449040848,-500.0,0.00019985,2]
[320575126,1711449040858,-7145.32,0.00019985,2]
[320575127,1711449040867,-500.0,0.00019985,2]
[320575128,1711449040877,-500.0,0.00019985,2]
[320575129,1711449040886,-1803.31,0.00019985,2]
[320575130,1711449040895,-500.0,0.00019985,2]
[320575131,1711449040904,-1079.8,0.00019985,2]
[320575132,1711449040914,-182.81194971,0.00019985,2]
[320575152,1711449043377,-317.18805029,0.00019985,2]
[320575153,1711449043387,-500.0,0.00019985,2]
[320575154,1711449043396,-2587.12,0.00019985,2]
[320575155,1711449043406,-1350.38,0.00019985,2]
[320575156,1711449043415,-713.11,0.00019985,2]
[320575157,1711449043425,-798.61,0.00019985,2]
[320575158,1711449043434,-489.42824086,0.00019985,2]
[320575191,1711449046370,-2997.91175914,0.00019985,2]
[320575192,1711449046379,-500.0,0.00019985,2]
[320575193,1711449046389,-500.0,0.00019985,2]
[320575194,1711449046400,-4581.4,0.00019985,2]
[320575195,1711449046409,-3331.80325002,0.00019985,2]
[320575209,1711449252516,769.5305714,0.00019581,2]
[320575212,1711449524602,500.0,0.00021917,30]
[320575277,1711450232253,-1539.79390352,0.0001988,2]
[320575279,1711450232262,-251.6989728,0.00019881,2]
[320575280,1711450232271,-173.56587593,0.00019883,2]
[320575282,1711450232280,-173.56587593,0.00019884,2]
[320575284,1711450232289,-627.88923135,0.00019884,2]
[320575286,1711450232298,-210.40624973,0.00019884,2]
[320575288,1711450232307,-155.14739002,0.00019884,2]
[320575291,1711450232316,-3185.03,0.00019885,2]
[320575293,1711450232325,-500.0,0.00019885,2]
[320575295,1711450232334,-65597.80252825,0.00019886,2]
[320575297,1711450232342,-500.0,0.00019981,2]
[320575299,1711450232351,-294.47,0.00019981,2]
[320575301,1711450232360,-3288.17,0.00019981,2]
[320575303,1711450232369,-500.0,0.00019982,2]
[320575306,1711450232378,-500.0,0.00019982,2]
[320575309,1711450232387,-500.0,0.00019982,2]
[320575312,1711450232397,-500.0,0.00019982,2]
[320575315,1711450232408,-500.0,0.00019982,2]
[320575318,1711450232417,-500.0,0.00019982,2]
[320575320,1711450232425,-435.67929192,0.00019982,2]
[320575322,1711450232434,-502.87201479,0.00019982,2]
[320575324,1711450232444,-500.0,0.00019982,2]
[320575326,1711450232455,-265.05564025,0.00019982,2]
[320575328,1711450232464,-500.0,0.00019982,2]
[320575330,1711450232474,-634.11,0.00019982,2]
[320575332,1711450232484,-500.0,0.00019982,2]
[320575334,1711450232493,-500.0,0.00019982,2]
[320575336,1711450232502,-500.0,0.00019982,2]
[320575338,1711450232510,-404.0930395,0.00019982,2]
[320575340,1711450232519,-515.73069848,0.00019982,2]
[320575342,1711450232528,-500.0,0.00019982,2]
[320575343,1711450232537,-500.0,0.00019982,2]
[320575345,1711450232548,-500.0,0.00019982,2]
[320575347,1711450232558,-500.0,0.00019982,2]
[320575349,1711450232567,-493.81487992,0.00019982,2]
[320575351,1711450232577,-500.0,0.00019982,2]
[320575353,1711450232586,-500.0,0.00019982,2]
[320575355,1711450232595,-500.0,0.00019982,2]
[320575357,1711450232604,-500.0,0.00019982,2]
[320575359,1711450232613,-708.56,0.00019982,2]
[320575361,1711450232622,-500.0,0.00019982,2]
[320575363,1711450232631,-156.10752853,0.00019982,2]
[320575365,1711450232641,-500.0,0.00019982,2]
[320575367,1711450232650,-500.0,0.00019982,2]
[320575369,1711450232659,-500.0,0.00019982,2]
[320575371,1711450232668,-500.0,0.00019982,2]
[320575373,1711450232677,-500.0,0.00019982,2]
[320575375,1711450232686,-328.79885617,0.00019983,2]
[320575377,1711450232695,-192.69613778,0.00019983,2]
[320575379,1711450232705,-500.0,0.00019983,2]
[320575381,1711450232714,-500.0,0.00019983,2]
[320575383,1711450232724,-712.87,0.00019983,2]
[320575385,1711450232733,-500.0,0.00019983,2]
[320575387,1711450232742,-500.0,0.00019983,2]
[320575388,1711450232751,-500.0,0.00019983,2]
[320575390,1711450232761,-500.0,0.00019983,2]
[320575392,1711450232770,-500.0,0.00019983,2]
[320575394,1711450232780,-815.32,0.00019983,2]
[320575396,1711450232789,-500.0,0.00019983,2]
[320575399,1711450232799,-900.34,0.00019983,2]
[320575401,1711450232808,-692.68,0.00019983,2]
[320575403,1711450232818,-916.37,0.00019983,2]
[320575404,1711450232828,-500.0,0.00019983,2]
[320575405,1711450232837,-500.0,0.00019983,2]
[320575407,1711450232846,-1728.17,0.00019983,2]
[320575409,1711450232856,-1034.81,0.00019983,2]
[320575410,1711450232866,-161.75326925,0.00019983,2]
[320575411,1711450232875,-500.0,0.00019983,2]
[320575412,1711450232884,-765.33,0.00019983,2]
[320575413,1711450232894,-500.0,0.00019983,2]
[320575414,1711450232903,-2604.81207945,0.00019983,2]
[320575485,1711450238387,-500.0,0.00019885,2]
[320575487,1711450238397,-3263.18735695,0.00019983,2]
[320575489,1711450238412,-554.35698859,0.00019983,2]
[320575505,1711450240481,-1000.0,0.00019982,2]
[320575506,1711450240494,-425.24357501,0.00019983,2]
[320575507,1711450240504,-1294.11,0.00019983,2]
[320575508,1711450240513,-500.0,0.00019983,2]
[320575509,1711450240523,-547.24,0.00019983,2]
[320575510,1711450240533,-185.06546195,0.00019983,2]
[320575523,1711450243416,-500.0,0.00019982,2]
[320575524,1711450243426,-498.33453805,0.00019983,2]
[320575525,1711450243435,-500.0,0.00019983,2]
[320575526,1711450243446,-744.72546135,0.00019983,2]
[320575571,1711450246569,-1734.59453865,0.00019983,2]
[320575572,1711450246581,-3342.04,0.00019983,2]
[320575573,1711450246591,-4390.51,0.00019983,2]
[320575574,1711450246600,-3185.03,0.00019983,2]
[320575575,1711450246609,-3185.03,0.00019983,2]
[320575576,1711450246621,-500.0,0.00019983,2]
[320575577,1711450246630,-500.0,0.00019983,2]
[320575578,1711450246640,-538.47,0.00019983,2]
[320575579,1711450246649,-3610.56,0.00019983,2]
[320575580,1711450246658,-500.0,0.00019983,2]
[320575581,1711450246667,-775.78,0.00019983,2]
[320575582,1711450246676,-500.0,0.00019983,2]
[320575583,1711450246685,-500.0,0.00019983,2]
[320575584,1711450246694,-763.07,0.00019983,2]
[320575585,1711450246703,-500.0,0.00019983,2]
[320575586,1711450246713,-500.0,0.00019983,2]
[320575587,1711450246722,-500.0,0.00019983,2]
[320575588,1711450246732,-500.0,0.00019983,2]
[320575589,1711450246742,-1811.8,0.00019983,2]
[320575590,1711450246751,-500.0,0.00019983,2]
[320575591,1711450246760,-2956.62,0.00019983,2]
[320575592,1711450246769,-35237.17798585,0.00019983,2]
[320575596,1711450412308,500.0,0.00021917,30]
[320575597,1711450413400,356319.7728682,0.00026477,60]
[320575598,1711450432785,371.93745374,0.00019585,2]
[320575602,1711450952710,173.850342,0.00023288,61]
[320575603,1711450952918,173.850342,0.00023288,120]
[320575606,1711451196972,-1031245.46825288,0.00026458,60]
[320575638,1711451373347,500.0,0.00021917,30]
[320575668,1711451432451,-3154.66071707,0.00019881,2]
[320575669,1711451432460,-565.10030817,0.00019882,2]
[320575670,1711451432470,-6997.43897476,0.00019884,2]
[320575671,1711451432483,-9891.88503029,0.00019884,2]
[320575672,1711451432492,-500.0,0.00019885,2]
[320575673,1711451432502,-500.0,0.00019885,2]
[320575675,1711451432512,-170.96906902,0.00019885,2]
[320575677,1711451432521,-500.0,0.00019885,2]
[320575678,1711451432530,-440.21722858,0.00019885,2]
[320575814,1711451438452,-784.51582961,0.00019885,2]
[320575821,1711451438512,-1398.75522733,0.00019885,2]
[320576009,1711451443660,-111.92171448,0.00019885,2]
[320576010,1711451443669,-500.0,0.0001998,2]
[320576011,1711451443678,-500.0,0.0001998,2]
[320576012,1711451443688,-607.69,0.0001998,2]
[320576013,1711451443698,-500.0,0.0001998,2]
[320576014,1711451443707,-500.0,0.0001998,2]
[320576015,1711451443716,-500.0,0.0001998,2]
[320576016,1711451443726,-500.0,0.0001998,2]
[320576017,1711451443735,-500.0,0.0001998,2]
[320576018,1711451443744,-679.03,0.0001998,2]
[320576019,1711451443754,-500.0,0.0001998,2]
[320576020,1711451443764,-500.0,0.0001998,2]
[320576021,1711451443776,-242.25156998,0.0001998,2]
[320576022,1711451443785,-500.0,0.0001998,2]
[320576023,1711451443795,-500.0,0.0001998,2]
[320576024,1711451443805,-213.44946187,0.0001998,2]
[320576026,1711451443815,-500.0,0.0001998,2]
[320576027,1711451443828,-500.0,0.0001998,2]
[320576029,1711451443837,-1000.0,0.0001998,2]
[320576030,1711451443848,-483.37280309,0.0001998,2]
[320576032,1711451443858,-500.0,0.0001998,2]
[320576034,1711451443868,-1083.02,0.0001998,2]
[320576036,1711451443877,-1240.19,0.0001998,2]
[320576037,1711451443886,-2619.73916487,0.0001998,2]
[320576137,1711451446739,-3942.54083513,0.0001998,2]
[320576139,1711451446749,-524.44,0.0001998,2]
[320576141,1711451446760,-500.0,0.0001998,2]
[320576143,1711451446771,-500.0,0.0001998,2]
[320576145,1711451446781,-63.1549487,0.0001998,2]
[320576147,1711451446811,-436.8450513,0.0001998,2]
[320576148,1711451446820,-251.0692487,0.0001998,2]
[320576159,1711452390420,265.77189262,0.00021917,30]
[320576457,1711452638755,-993.13222979,0.00019881,2]
[320576495,1711452640746,-2161.52848728,0.00019881,2]
[320576496,1711452640757,-508.59027738,0.00019882,2]
[320576497,1711452640766,-1514.01307834,0.00019942,2]
[320576498,1711452640806,-67.97325951,0.00019942,2]
[320576499,1711452640815,-1581.98633785,0.00019944,2]
[320576500,1711452640825,-1581.98633785,0.00019946,2]
[320576501,1711452640834,-172.95963395,0.00019952,2]
[320576502,1711452640851,-1409.0267039,0.00019952,2]
[320576503,1711452640861,-1581.98633785,0.00019953,2]
[320576504,1711452640870,-1581.98633785,0.00019963,2]
[320576505,1711452640879,-1581.98633785,0.00019969,2]
[320576506,1711452640889,-227.90404055,0.00019978,2]
[320576507,1711452640904,-1441.98154231,0.00019978,2]
[320576508,1711452640918,-4618.97441714,0.00019978,2]
[320576509,1711452640928,-2376.02,0.00019978,2]
[320576510,1711452640937,-1188.52,0.00019978,2]
[320576511,1711452640947,-500.0,0.00019978,2]
[320576512,1711452640956,-502.59,0.00019978,2]
[320576513,1711452640966,-1475.33394961,0.00019978,2]
[320576533,1711452644028,-1984.78605039,0.00019978,2]
[320576535,1711452644038,-2786.9,0.00019978,2]
[320576537,1711452644048,-500.0,0.00019978,2]
[320576539,1711452644057,-500.0,0.00019978,2]
[320576541,1711452644067,-500.0,0.00019978,2]
[320576543,1711452644076,-2833.43,0.00019978,2]
[320576545,1711452644092,-1736.31,0.00019978,2]
[320576547,1711452644101,-4703.01777175,0.00019978,2]
[320576550,1711452644118,-909.48878215,0.00019978,2]
[320578281,1711453661783,-155.03875969,0.00019873,2]
[320578282,1711453661807,-471.19723766,0.00019874,2]
[320578283,1711453661831,-3154.66071707,0.00019878,2]
[320578284,1711453661856,-26219.10328558,0.00019879,2]
[320578446,1711453837971,-1660.25989218,0.0001987,2]
[320578449,1711453837984,-945.67333516,0.0001987,2]
[320578450,1711453838096,-1610.84561279,0.0001987,2]
[320578451,1711453838106,-437.35894058,0.00019871,2]
[320578452,1711453838115,-1957.2415856,0.00019871,2]
[320578453,1711453838125,-187.83162883,0.00019871,2]
[320578454,1711453838134,-3154.66071707,0.00019872,2]
[320578455,1711453838144,-16140.02552949,0.00019873,2]
[320578456,1711453838154,-187.70183457,0.00019873,2]
[320578457,1711453838163,-1301.78030648,0.00019874,2]
[320578458,1711453838172,-180.26624286,0.00019874,2]
[320578459,1711453838181,-4288.12740773,0.00019874,2]
[320578466,1711453839874,-502.45850003,0.00019874,2]
[320578467,1711453839889,-31729.74131452,0.00019874,2]
[320578468,1711453839926,-464.81038437,0.00019874,2]
[320578515,1711453846130,-686.05454832,0.00019869,2]
[320578516,1711453846140,-328.27545168,0.0001987,2]
[320578517,1711453846194,-289.64426016,0.0001987,2]
[320578518,1711453846204,-204.86050653,0.00019873,2]
[320578519,1711453846214,-121.96494929,0.00019873,2]
[320578525,1711453949008,250.0,0.0001887,2]
[320578526,1711453985414,19069.41550969,0.0001887,2]
[320578527,1711453987469,155.64490929,0.00019,2]
[320578528,1711454003404,19069.41550969,0.0001887,2]
[320578529,1711454025404,228.5840994,0.0001887,2]
[320578537,1711454080933,34686.78068492,0.00026635,30]
[320578538,1711454081441,18996.95586287,0.00026635,30]
[320578539,1711454082446,77233.30074406,0.00026635,30]
[320578541,1711454129687,196.1777537,0.00018976,2]
[320578544,1711454645033,437.35894058,0.000197,2]
[320578545,1711454647192,1610.84561279,0.000197,2]
[320578546,1711454649613,204.86050653,0.000197,2]
[320578547,1711454650311,155.01860223,0.000197,2]
[320578548,1711454655302,155.01860223,0.000197,2]
[320578549,1711454660918,155.01860223,0.000197,2]
[320578550,1711454669609,1264.68313104,0.000197,2]
[320578551,1711454672097,170.63807538,0.000197,2]
[320578552,1711454673795,1957.2415856,0.000197,2]
[320578553,1711454682246,1922.64152204,0.000197,2]
[320578554,1711454725622,1610.84561279,0.000197,2]
[320578555,1711454731816,155.01395126,0.000197,2]
[320578556,1711454735430,155.01395126,0.000197,2]
[320578557,1711454741890,686.05454832,0.000197,2]
[320578593,1711455010145,920.79514438,0.00018877,2]
[320578639,1711455032009,-155.0480649,0.00019747,2]
[320578641,1711455032019,-170.63807538,0.00019748,2]
[320578642,1711455032029,-305.17864111,0.00019749,2]
[320578644,1711455032039,-180.26624286,0.00019749,2]
[320578645,1711455032049,-1610.84561279,0.0001975,2]
[320578646,1711455032059,-993.96137805,0.0001976,2]
[320578648,1711455032068,-2067.59095039,0.00019773,2]
[320578649,1711455032078,-8136.89659512,0.00019774,2]
[320578650,1711455032087,-457.73124966,0.00019779,2]
[320578651,1711455032097,-3154.66071707,0.00019854,2]
[320578652,1711455032106,-326.05635795,0.0001987,2]
[320578653,1711455032116,-264.37836873,0.00019871,7]
[320578654,1711455032125,-328.79885617,0.00019871,2]
[320578655,1711455032134,-406.20504989,0.00019871,2]
[320578656,1711455032144,-204.59707551,0.00019871,2]
[320578657,1711455032153,-214.12563871,0.00019871,2]
[320578658,1711455032163,-969.86840439,0.00019871,2]
[320578659,1711455032173,-369.77143074,0.00019871,2]
[320578660,1711455032183,-399.61075321,0.00019871,2]
[320578661,1711455032192,-192.69613778,0.00019871,2]
[320578662,1711455032202,-155.09585176,0.00019871,2]
[320578663,1711455032211,-237.77665041,0.00019871,2]
[320578664,1711455032222,-309.87297944,0.00019871,2]
[320578665,1711455032232,-205.33441189,0.00019872,2]
[320578666,1711455032242,-1352.99786362,0.00019872,2]
[320578667,1711455032251,-2603.73287062,0.00019872,2]
[320578668,1711455032261,-252.13744437,0.00019872,2]
[320578669,1711455032270,-600.10730256,0.00019872,2]
[320578670,1711455032279,-155.14739002,0.00019872,2]
[320578671,1711455032288,-456.68061786,0.00019872,2]
[320578672,1711455032298,-1253.07,0.00019872,2]
[320578673,1711455032307,-1030.37,0.00019872,2]
[320578674,1711455032316,-6300.74,0.00019872,2]
[320578675,1711455032325,-2277.02,0.00019872,2]
[320578676,1711455032335,-500.0,0.00019872,2]
[320578677,1711455032345,-3315.95,0.00019872,2]
[320578678,1711455032354,-2670.78,0.00019872,2]
[320578679,1711455032363,-500.0,0.00019872,2]
[320578680,1711455032372,-500.0,0.00019872,2]
[320578681,1711455032382,-1663.96,0.00019872,2]
[320578682,1711455032391,-500.0,0.00019872,2]
[320578683,1711455032400,-500.0,0.00019872,2]
[320578684,1711455032410,-6638.18,0.00019872,2]
[320578685,1711455032420,-2715.37,0.00019872,2]
[320578686,1711455032429,-360.15762884,0.00019872,2]
[320578687,1711455032438,-2730.89,0.00019872,2]
[320578688,1711455032447,-3207.97,0.00019872,2]
[320578689,1711455032456,-1523.49982918,0.00019873,2]
[320578690,1711455032468,-155.36079134,0.00019873,2]
[320578691,1711455032477,-500.0,0.00019873,2]
[320578692,1711455032486,-389.19691527,0.00019873,2]
[320578720,1711455038041,-151.0,0.00019872,2]
[320578721,1711455038050,-110.80308473,0.00019873,2]
[320578722,1711455038059,-500.0,0.00019873,2]
[320578723,1711455038069,-500.0,0.00019873,2]
[320578724,1711455038078,-500.0,0.00019873,2]
[320578725,1711455038087,-500.0,0.00019873,2]
[320578726,1711455038096,-455.0,0.00019873,2]
[320578727,1711455038105,-298.17914005,0.00019873,2]
[320578729,1711455038115,-500.0,0.00019873,2]
[320578731,1711455038125,-500.0,0.00019873,2]
[320578733,1711455038135,-21.95264991,0.00019873,2]
[320578798,1711455043190,-500.0,0.00019872,2]
[320578799,1711455043199,-478.04735009,0.00019873,2]
[320578800,1711455043209,-151.78496477,0.00019873,2]
[320578801,1711455043218,-500.0,0.00019873,2]
[320578802,1711455043228,-582.37,0.00019873,2]
[320578803,1711455043238,-717.42,0.00019873,2]
[320578804,1711455043247,-500.0,0.00019873,2]
[320578805,1711455043258,-500.0,0.00019873,2]
[320578806,1711455043266,-500.0,0.00019873,2]
[320578807,1711455043276,-500.0,0.00019873,2]
[320578808,1711455043285,-500.0,0.00019873,2]
[320578809,1711455043294,-617.20923216,0.00019873,2]
[320578810,1711455043304,-500.0,0.00019873,2]
[320578811,1711455043313,-500.0,0.00019873,2]
[320578812,1711455043323,-503.11948425,0.00019873,2]
[320578813,1711455043333,-500.0,0.00019873,2]
[320578814,1711455043343,-500.0,0.00019873,2]
[320578815,1711455043352,-939.16,0.00019873,2]
[320578816,1711455043361,-820.67,0.00019873,2]
[320578817,1711455043369,-417.05867952,0.00019873,2]
[320578856,1711455046302,-306.01848775,0.00019871,2]
[320578857,1711455046312,-500.0,0.00019872,2]
[320578858,1711455046322,-233.68132048,0.00019873,2]
[320578859,1711455046333,-500.0,0.00019873,2]
[320578860,1711455046342,-500.0,0.00019873,2]
[320578861,1711455046352,-500.0,0.00019873,2]
[320578862,1711455046362,-500.0,0.00019873,2]
[320578863,1711455046371,-500.72174918,0.00019873,2]
[320578864,1711455046381,-500.0,0.00019873,2]
[320578865,1711455046390,-830.81,0.00019873,2]
[320578866,1711455046400,-500.0,0.00019873,2]
[320578867,1711455046409,-500.0,0.00019873,2]
[320578868,1711455046418,-500.0,0.00019873,2]
[320578869,1711455046427,-500.0,0.00019873,2]
[320578870,1711455046437,-500.0,0.00019873,2]
[320578871,1711455046446,-500.0,0.00019873,2]
[320578872,1711455046455,-697.49,0.00019873,2]
[320578873,1711455046464,-500.0,0.00019873,2]
[320578874,1711455046476,-500.0,0.00019873,2]
[320578875,1711455046485,-500.0,0.00019873,2]
[320578876,1711455046495,-500.0,0.00019873,2]
[320578877,1711455046504,-921.96,0.00019873,2]
[320578878,1711455046513,-363.19401194,0.00019873,2]
[320578879,1711455046523,-14444.02,0.00019873,2]
[320578880,1711455046532,-595.52,0.00019873,2]
[320578881,1711455046542,-500.0,0.00019873,2]
[320578882,1711455046551,-500.0,0.00019873,2]
[320578883,1711455046560,-500.0,0.00019873,2]
[320578884,1711455046570,-500.0,0.00019873,2]
[320578885,1711455046579,-500.0,0.00019873,2]
[320578886,1711455046588,-500.0,0.00019873,2]
[320578887,1711455046598,-500.0,0.00019873,2]
[320578888,1711455046607,-500.0,0.00019873,2]
[320578889,1711455046617,-500.0,0.00019873,2]
[320578890,1711455046626,-500.0,0.00019873,2]
[320578891,1711455046635,-500.0,0.00019873,2]
[320578892,1711455046645,-500.0,0.00019873,2]
[320578893,1711455046655,-500.0,0.00019873,2]
[320578894,1711455046664,-1254.14,0.00019873,2]
[320578895,1711455046673,-945.52,0.00019873,2]
[320578896,1711455046682,-1037.9,0.00019873,2]
[320578897,1711455046692,-892.3,0.00019873,2]
[320578898,1711455046702,-501.91688288,0.00019873,2]
[320578899,1711455046711,-500.0,0.00019873,2]
[320578900,1711455046720,-684.64,0.00019873,2]
[320578901,1711455046733,-500.0,0.00019873,2]
[320578902,1711455046742,-501.51927491,0.00019873,2]
[320578903,1711455046751,-501.46926388,0.00019873,2]
[320578904,1711455046761,-500.0,0.00019873,2]
[320578905,1711455046771,-646.95596248,0.00019873,2]
[320578906,1711455046781,-500.0,0.00019873,2]
[320578907,1711455046792,-645.05,0.00019873,2]
[320578908,1711455046802,-3223.18,0.00019873,2]
[320578909,1711455046811,-991.69,0.00019873,2]
[320578910,1711455046821,-503.3419479,0.00019873,2]
[320578911,1711455046831,-500.0,0.00019873,2]
[320578912,1711455046840,-500.0,0.00019873,2]
[320578913,1711455046849,-500.0,0.00019873,2]
[320578914,1711455046861,-188.80995406,0.00019873,2]
[320578915,1711455046871,-2795.21,0.00019873,2]
[320578916,1711455046880,-503.29478543,0.00019873,2]
[320578917,1711455046889,-500.0,0.00019873,2]
[320578918,1711455046898,-951.87,0.00019873,2]
[320578919,1711455046907,-500.0,0.00019873,2]
[320578920,1711455046917,-502.6945527,0.00019873,2]
[320578921,1711455046926,-500.0,0.00019873,2]
[320578922,1711455046935,-4207.57,0.00019873,2]
[320578923,1711455046945,-500.0,0.00019873,2]
[320578924,1711455046954,-500.0,0.00019873,2]
[320578925,1711455046963,-500.0,0.00019873,2]
[320578926,1711455046974,-501.56043612,0.00019873,2]
[320578927,1711455046984,-500.0,0.00019873,2]
[320578928,1711455046993,-500.0,0.00019873,2]
[320578929,1711455047002,-500.0,0.00019873,2]
[320578930,1711455047012,-766.72,0.00019873,2]
[320578931,1711455047022,-500.0,0.00019873,2]
[320578932,1711455047031,-500.0,0.00019873,2]
[320578933,1711455047040,-500.0,0.00019873,2]
[320578934,1711455047050,-500.0,0.00019873,2]
[320578935,1711455047060,-206.21444691,0.00019873,2]
[320578936,1711455047069,-500.0,0.00019873,2]
[320578937,1711455047078,-589.71853155,0.00019873,2]
[320578938,1711455047088,-502.91051063,0.00019873,2]
[320578939,1711455047097,-516.04,0.00019873,2]
[320578940,1711455047107,-500.0,0.00019873,2]
[320578941,1711455047116,-950.09,0.00019873,2]
[320578942,1711455047126,-743.46,0.00019873,2]
[320578943,1711455047135,-500.0,0.00019873,2]
[320578944,1711455047144,-853.36,0.00019873,2]
[320578945,1711455047154,-500.0,0.00019873,2]
[320578946,1711455047163,-2670.78,0.00019873,2]
[320578947,1711455047173,-2670.78,0.00019873,2]
[320578948,1711455047183,-2670.78,0.00019873,2]
[320578949,1711455047193,-2670.78,0.00019873,2]
[320578950,1711455047202,-2670.78,0.00019873,2]
[320578951,1711455047212,-2670.78,0.00019873,2]
[320578952,1711455047221,-2670.78,0.00019873,2]
[320578953,1711455047236,-2670.78,0.00019873,2]
[320578954,1711455047246,-2670.78,0.00019873,2]
[320578955,1711455047255,-500.0,0.00019873,2]
[320578956,1711455047265,-2670.78,0.00019873,2]
[320578957,1711455047274,-500.0,0.00019873,2]
[320578958,1711455047283,-731.28,0.00019873,2]
[320578959,1711455047293,-500.0,0.00019873,2]
[320578960,1711455047302,-500.0,0.00019873,2]
[320578961,1711455047312,-237.11233415,0.00019873,2]
[320578962,1711455047321,-13777.32,0.00019873,2]
[320578963,1711455047330,-500.0,0.00019873,2]
[320578964,1711455047339,-8317.03,0.00019873,2]
[320578965,1711455047349,-500.90662232,0.00019873,2]
[320578966,1711455047358,-500.0,0.00019873,2]
[320578967,1711455047368,-44137.36,0.00019873,2]
[320578968,1711455047378,-387.918526,0.00019873,2]
[320578969,1711455047388,-387.918526,0.00019873,2]
[320578970,1711455047397,-387.918526,0.00019873,2]
[320578971,1711455047406,-387.918526,0.00019873,2]
[320578972,1711455047415,-387.918526,0.00019873,2]